bitfinex-derivatives/quotes_BTCF0:USTF0_20260315
["timestamp","ask_amount","ask_price","bid_price","bid_amount"]
[1773573883992,0.06818123,71798.0,71788.0,0.0014]
[1773573884296,0.041777,71798.0,71786.0,0.041784]
[1773573884593,0.041777,71798.0,71787.0,0.0014]
[1773573884795,0.041777,71798.0,71787.0,0.043183]
[1773573895100,0.052766,71800.0,71787.0,0.043183]
[1773573900309,0.041777,71799.0,71787.0,0.043183]
[1773573900510,0.041779,71796.0,71787.0,0.0014]
[1773573903020,0.01099,71800.0,71784.0,0.0014]
[1773573903227,0.01099,71800.0,71779.0,0.01099]
[1773573903228,0.0266017,71799.0,71785.0,0.0014]
[1773573903523,0.041782,71791.0,71785.0,0.0014]
[1773573903716,0.041782,71791.0,71786.0,0.0014]
[1773573903918,0.041782,71791.0,71787.0,0.0014]
[1773573904227,0.041782,71791.0,71788.0,0.0014]
[1773573905021,0.041782,71791.0,71779.0,0.052778]
[1773573905228,0.041782,71791.0,71780.0,0.0014]
[1773573907021,0.052772,71791.0,71780.0,0.0014]
[1773573910324,0.041782,71790.0,71780.0,0.0014]
[1773573911332,0.041782,71790.0,71781.0,0.0014]
[1773573911730,0.041782,71790.0,71779.0,0.041788]
[1773573911925,0.041782,71790.0,71780.0,0.0014]
[1773573914932,0.01099,71791.0,71780.0,0.0014]
[1773573915731,0.01099,71791.0,71782.0,0.041786]
[1773573915932,0.01099,71791.0,71780.0,0.06818494]
[1773573916134,0.041779,71795.0,71781.0,0.02499794]
[1773573916332,0.041779,71795.0,71780.0,0.0014]
[1773573916333,0.04178,71794.0,71783.0,0.02499794]
[1773573918326,0.0266017,71804.0,71783.0,0.02499794]
[1773573918327,0.04178,71793.0,71783.0,0.02499794]
[1773573920239,0.05277,71793.0,71783.0,0.02499794]
[1773573921343,0.041781,71792.0,71780.0,0.043187]
[1773573922542,0.041781,71792.0,71781.0,0.041787]
[1773573925146,0.01099,71793.0,71781.0,0.041787]
[1773573927743,0.05277,71793.0,71781.0,0.041787]
[1773573933647,0.03692808,71793.0,71782.0,0.0014]
[1773573933845,0.02593808,71792.0,71783.0,0.0014]
[1773573934145,0.041782,71791.0,71783.0,0.0014]
[1773573936246,0.041782,71790.0,71783.0,0.0014]
[1773573936647,0.02593808,71789.0,71783.0,0.0014]
[1773573937349,0.06772108,71789.0,71784.0,0.0014]
[1773573941554,0.041783,71789.0,71784.0,0.0014]
[1773573943042,0.02593808,71789.0,71773.0,0.01099]
[1773573943352,0.02593808,71789.0,71774.0,0.0014]
[1773573943543,0.02593808,71789.0,71773.0,0.01099]
[1773573943740,0.02593808,71789.0,71774.0,0.0014]
[1773573943946,0.02593808,71789.0,71774.0,0.043191]
[1773573944255,0.02593808,71789.0,71775.0,0.0014]
[1773573945058,0.041784,71787.0,71774.0,0.041791]
[1773573945356,0.041784,71787.0,71775.0,0.0014]
[1773573945946,0.041784,71786.0,71775.0,0.0014]
[1773573946144,0.041784,71786.0,71776.0,0.0014]
[1773573946557,0.041784,71786.0,71774.0,0.041791]
[1773573946758,0.041784,71786.0,71775.0,0.0014]
[1773573946964,0.041784,71786.0,71774.0,0.041791]
[1773573947161,0.041784,71786.0,71775.0,0.0014]
[1773573947550,0.041784,71786.0,71776.0,0.0014]
[1773573947957,0.041784,71786.0,71774.0,0.041791]
[1773573948160,0.041784,71786.0,71775.0,0.0014]
[1773573948559,0.041784,71786.0,71776.0,0.0014]
[1773573948745,0.041786,71784.0,71771.0,0.041792]
[1773573948953,0.02593808,71785.0,71765.0,0.01099]
[1773573949255,0.02593808,71785.0,71768.0,0.041794]
[1773573949450,0.02593808,71781.0,71769.0,0.0014]
[1773573949853,0.02593808,71781.0,71765.0,0.01099]
[1773573950049,0.041788,71780.0,71768.0,0.041794]
[1773573950459,0.041788,71779.0,71769.0,0.0014]
[1773573950960,0.02593808,71785.0,71770.0,0.0014]
[1773573951150,0.041789,71777.0,71770.0,0.00058772]
[1773573951464,0.041789,71777.0,71766.0,0.00014704]
[1773573951465,0.04179,71777.0,71771.0,0.0014]
[1773573953565,0.06674949,71777.0,71771.0,0.0014]
[1773573953758,0.06674949,71777.0,71766.0,0.00014704]
[1773573953958,0.06674949,71776.0,71767.0,0.0014]
[1773573955761,0.02495949,71775.0,71766.0,0.00014704]
[1773573956060,0.02495949,71775.0,71766.0,0.00154704]
[1773573957065,0.02495949,71775.0,71767.0,0.0014]
[1773573957262,0.02495949,71775.0,71766.0,0.00014704]
[1773573957263,0.02495949,71775.0,71768.0,0.0014]
[1773573958158,0.06675049,71775.0,71768.0,0.0014]
[1773573959165,0.02495949,71774.0,71766.0,0.00014704]
[1773573959364,0.02495949,71774.0,71753.0,0.02420047]
[1773573959365,0.041798,71762.0,71745.0,0.02420047]
[1773573959662,0.041798,71762.0,71749.0,0.041805]
[1773573959866,0.041798,71762.0,71750.0,0.0014]
[1773573960458,0.00014704,71761.0,71750.0,0.0014]
[1773573960962,0.04194604,71761.0,71750.0,0.0014]
[1773573962466,0.05293604,71761.0,71751.0,0.0014]
[1773573969869,0.05293604,71761.0,71752.0,0.0014]
[1773573970260,0.0418,71760.0,71752.0,0.0014]
[1773573970460,0.0418,71760.0,71753.0,0.0014]
[1773573970863,0.01113704,71761.0,71743.0,0.02420047]
[1773573970864,0.01113704,71761.0,71754.0,0.0014]
[1773573971064,0.01113704,71761.0,71755.0,0.0014]
[1773573971263,0.01113704,71761.0,71750.0,0.0014]
[1773573971576,0.01113704,71761.0,71740.0,0.01099]
[1773573971577,0.01823701,71760.0,71751.0,0.0014]
[1773573971762,0.01823701,71760.0,71752.0,0.0014]
[1773573973058,0.041802,71756.0,71752.0,0.0014]
[1773573973464,0.01823701,71760.0,71742.0,0.041809]
[1773573973673,0.01823701,71760.0,71743.0,0.0014]
[1773573974470,0.01823701,71760.0,71740.0,0.01099]
[1773573974676,0.01816977,71760.0,71741.0,0.0014]
[1773573974871,0.01816977,71760.0,71740.0,0.01099]
[1773573975173,0.01816977,71760.0,71741.0,0.0014]
[1773573975571,0.041804,71753.0,71740.0,0.01099]
[1773573975873,0.041804,71752.0,71741.0,0.0014]
[1773573976068,0.041804,71752.0,71740.0,0.01099]
[1773573976266,0.041805,71751.0,71741.0,0.0014]
[1773573976663,0.041804,71753.0,71742.0,0.0014]
[1773573976867,0.041804,71752.0,71742.0,0.0014]
[1773573977068,0.041804,71752.0,71740.0,0.052801]
[1773573977271,0.041804,71752.0,71741.0,0.0014]
[1773573977668,0.041804,71752.0,71740.0,0.052801]
[1773573977975,0.041805,71751.0,71742.0,0.0014]
[1773573978164,0.041805,71751.0,71740.0,0.052801]
[1773573978369,0.041805,71751.0,71741.0,0.0014]
[1773573978873,0.041805,71751.0,71742.0,0.0014]
[1773573979467,0.041805,71751.0,71743.0,0.0014]
[1773573979668,0.041805,71751.0,71744.0,0.0014]
[1773573979874,0.041805,71751.0,71738.0,0.041812]
[1773573980075,0.041805,71751.0,71739.0,0.0014]
[1773573980375,0.041807,71747.0,71740.0,0.0014]
[1773573980576,0.041807,71747.0,71731.0,0.03589752]
[1773573980577,0.041807,71747.0,71741.0,0.0014]
[1773573980776,0.041807,71747.0,71742.0,0.0014]
[1773573981175,0.041807,71747.0,71731.0,0.03589752]
[1773573981477,0.041807,71747.0,71732.0,0.0014]
[1773573981977,0.041807,71747.0,71734.0,0.041814]
[1773573983072,0.02398956,71749.0,71732.0,0.0014]
[1773573983279,0.00014704,71750.0,71733.0,0.0014]
[1773573983280,0.041809,71744.0,71733.0,0.0014]
[1773573983680,0.041809,71744.0,71731.0,0.05351305]
[1773573983870,0.041809,71744.0,71732.0,0.0014]
[1773573984071,0.02398956,71746.0,71731.0,0.01169705]
[1773573984271,0.02381233,71749.0,71732.0,0.0014]
[1773573984782,0.00014704,71750.0,71731.0,0.01026341]
[1773573985079,0.041808,71746.0,71734.0,0.02387722]
[1773573985266,0.00014704,71750.0,71734.0,0.02387722]
[1773573986277,0.041807,71747.0,71735.0,0.041814]
[1773573986665,0.041808,71746.0,71734.0,0.02387722]
[1773573989787,0.041808,71746.0,71734.0,0.06569122]
[1773573990080,0.00014704,71750.0,71732.0,0.041815]
[1773573990279,0.041808,71745.0,71733.0,0.0014]
[1773573990467,0.041808,71745.0,71726.0,0.02387722]
[1773573990670,0.041808,71745.0,71727.0,0.0014]
[1773573991081,0.041808,71745.0,71732.0,0.041815]
[1773573991976,0.02520678,71744.0,71733.0,0.0014]
[1773573994078,0.03619678,71744.0,71733.0,0.0014]
[1773573994781,0.02520678,71739.0,71723.0,0.011]
[1773573994985,0.02520678,71739.0,71724.0,0.0014]
[1773573995386,0.041811,71740.0,71724.0,0.0014]
[1773573995575,0.041811,71740.0,71723.0,0.011]
[1773573995776,0.041811,71740.0,71724.0,0.0014]
[1773573996091,0.041811,71740.0,71726.0,0.041819]
[1773573996273,0.04181,71742.0,71724.0,0.02527722]
[1773573996484,0.041811,71741.0,71727.0,0.041818]
[1773573996788,0.041811,71740.0,71727.0,0.041818]
[1773574000082,0.06701878,71739.0,71725.0,0.041819]
[1773574000286,0.041819,71727.0,71707.0,0.02530784]
[1773574000590,0.04182,71725.0,71711.0,0.041827]
[1773574001283,0.00014153,71724.0,71711.0,0.041827]
[1773574001787,0.00014153,71724.0,71718.0,0.011]
[1773574001987,0.00014153,71724.0,71719.0,0.0014]
[1773574002482,0.041829,71709.0,71694.0,0.041837]
[1773574002690,0.00016127,71708.0,71695.0,0.043237]
[1773574002980,0.00016127,71708.0,71696.0,0.041836]
[1773574003181,0.00016127,71708.0,71697.0,0.0014]
[1773574003388,0.00016127,71708.0,71698.0,0.041835]
[1773574003577,0.0014,71725.0,71709.0,0.041829]
[1773574003777,0.041822,71721.0,71710.0,0.0014]
[1773574003977,0.19627191,71720.0,71710.0,0.0014]
[1773574004181,0.19627191,71719.0,71710.0,0.0014]
[1773574004375,0.02201,71720.0,71710.0,0.0014]
[1773574004591,0.0001339,71719.0,71710.0,0.0014]
[1773574006489,0.0001339,71719.0,71710.0,0.043228]
[1773574006788,0.02201,71720.0,71710.0,0.043228]
[1773574007390,0.041821,71724.0,71710.0,0.043228]
[1773574007584,0.19606345,71723.0,71710.0,0.043228]
[1773574007883,0.19606345,71722.0,71711.0,0.02512643]
[1773574008084,0.041818,71728.0,71714.0,0.06695243]
[1773574008389,0.19606947,71727.0,71714.0,0.06695243]
[1773574008592,0.041818,71728.0,71714.0,0.06695243]
[1773574008892,0.011,71720.0,71714.0,0.06695243]
[1773574009188,0.041817,71730.0,71714.0,0.06695243]
[1773574009377,0.19606743,71729.0,71714.0,0.06695243]
[1773574009577,0.19606743,71728.0,71715.0,0.041825]
[1773574009783,0.041817,71730.0,71715.0,0.041825]
[1773574009980,0.041818,71729.0,71715.0,0.041825]
[1773574010380,0.01970147,71735.0,71719.0,0.041823]
[1773574010588,0.19607758,71734.0,71720.0,0.0014]
[1773574010885,0.19607758,71733.0,71720.0,0.0014]
[1773574011087,0.19607758,71732.0,71720.0,0.0014]
[1773574011286,0.19607758,71731.0,71720.0,0.0014]
[1773574011486,0.03070147,71735.0,71720.0,0.0014]
[1773574011788,0.19608007,71734.0,71720.0,0.0014]
[1773574011988,0.23789507,71733.0,71720.0,0.0014]
[1773574012186,0.19608007,71732.0,71720.0,0.0014]
[1773574012490,0.19608007,71731.0,71720.0,0.0014]
[1773574012690,0.19608007,71730.0,71720.0,0.0014]
[1773574012887,0.052815,71734.0,71726.0,0.041819]
[1773574013082,0.041813,71738.0,71723.0,0.06970435]
[1773574013581,0.041813,71738.0,71720.0,0.0014]
[1773574013582,0.02871835,71750.0,71726.0,0.02788435]
[1773574013883,0.1660823,71761.0,71726.0,0.02788435]
[1773574013884,0.052815,71743.0,71730.0,0.041816]
[1773574014078,0.052815,71743.0,71731.0,0.0014]
[1773574015091,0.063815,71743.0,71731.0,0.0014]
[1773574015890,0.063815,71743.0,71731.0,0.043216]
[1773574017180,0.064815,71743.0,71731.0,0.043216]
[1773574017791,0.064815,71743.0,71721.0,0.011]
[1773574017792,0.02871835,71737.0,71721.0,0.011]
[1773574017980,0.02871835,71737.0,71722.0,0.0014]
[1773574018185,0.02871835,71737.0,71723.0,0.0014]
[1773574019284,0.041814,71735.0,71723.0,0.0014]
[1773574020298,0.041815,71734.0,71723.0,0.0014]
[1773574020498,0.041815,71733.0,71723.0,0.0014]
[1773574020901,0.041816,71732.0,71721.0,0.011]
[1773574021101,0.094631,71732.0,71722.0,0.0014]
[1773574021601,0.094631,71732.0,71723.0,0.0014]
[1773574022599,0.08153335,71732.0,71724.0,0.0014]
[1773574022791,0.09253335,71732.0,71725.0,0.0014]
[1773574023099,0.09253335,71732.0,71726.0,0.0014]
[1773574023398,0.041816,71731.0,71726.0,0.0014]
[1773574025194,0.02871835,71730.0,71718.0,0.02365348]
[1773574025388,0.052815,71730.0,71719.0,0.0014]
[1773574026206,0.011,71732.0,71719.0,0.02928435]
[1773574027107,0.011,71732.0,71720.0,0.041822]
[1773574027299,0.1,71730.0,71720.0,0.041822]
[1773574028106,0.1,71730.0,71720.0,0.06970635]
[1773574036006,0.1,71730.0,71720.0,0.041822]
[1773574037108,0.1,71730.0,71721.0,0.041822]
[1773574038903,0.1,71730.0,71719.0,0.0014]
[1773574039108,0.052815,71729.0,71720.0,0.0014]
[1773574039303,0.041818,71728.0,71721.0,0.0014]
[1773574039508,0.08153335,71729.0,71722.0,0.0014]
[1773574039705,0.08153335,71729.0,71723.0,0.0014]
[1773574040709,0.052815,71729.0,71723.0,0.0014]
[1773574042011,0.1,71730.0,71723.0,0.0014]
[1773574042209,0.052815,71729.0,71723.0,0.0014]
[1773574043713,0.1,71730.0,71723.0,0.0014]
[1773574043903,0.152815,71730.0,71723.0,0.0014]
[1773574044104,0.04510125,71730.0,71723.0,0.0014]
[1773574044410,0.08169613,71729.0,71723.0,0.0014]
[1773574044710,0.06339226,71729.0,71723.0,0.0014]
[1773574045105,0.06339226,71729.0,71725.0,0.041819]
[1773574046607,0.011,71732.0,71723.0,0.0014]
[1773574046911,0.011,71732.0,71726.0,0.041819]
[1773574047308,0.011,71732.0,71727.0,0.041818]
[1773574050018,0.19331009,71731.0,71727.0,0.041818]
[1773574050318,0.011,71732.0,71727.0,0.041818]
[1773574050511,0.1933059,71731.0,71727.0,0.041818]
[1773574050815,0.011,71732.0,71727.0,0.041818]
[1773574051015,0.19330579,71731.0,71725.0,0.041819]
[1773574051218,0.011,71732.0,71725.0,0.041819]
[1773574051414,0.19330126,71731.0,71725.0,0.041819]
[1773574051609,0.011,71732.0,71726.0,0.041819]
[1773574051809,0.19330126,71731.0,71726.0,0.041819]
[1773574052112,0.011,71732.0,71726.0,0.041819]
[1773574052312,0.19329785,71731.0,71726.0,0.041819]
[1773574052513,0.011,71732.0,71726.0,0.041819]
[1773574052813,0.19329785,71731.0,71726.0,0.041819]
[1773574053015,0.011,71732.0,71726.0,0.041819]
[1773574053211,0.19329785,71731.0,71726.0,0.041819]
[1773574053412,0.011,71732.0,71726.0,0.041819]
[1773574053612,0.19329561,71731.0,71726.0,0.041819]
[1773574053813,0.011,71732.0,71726.0,0.041819]
[1773574054015,0.19329561,71731.0,71726.0,0.041819]
[1773574054213,0.011,71732.0,71726.0,0.041819]
[1773574054518,0.19329441,71731.0,71726.0,0.041819]
[1773574054718,0.011,71732.0,71727.0,0.041818]
[1773574054914,0.19329441,71731.0,71728.0,0.041818]
[1773574055119,0.011,71732.0,71728.0,0.041818]
[1773574055508,0.011,71732.0,71726.0,0.041819]
[1773574063228,0.041812,71739.0,71726.0,0.041819]
[1773574063424,0.19280967,71738.0,71726.0,0.041819]
[1773574063622,0.19280967,71737.0,71726.0,0.041819]
[1773574063817,0.19280967,71736.0,71726.0,0.041819]
[1773574064017,0.19280967,71735.0,71726.0,0.041819]
[1773574064217,0.041812,71739.0,71726.0,0.041819]
[1773574064419,0.19280989,71738.0,71726.0,0.041819]
[1773574064620,0.19280989,71737.0,71726.0,0.041819]
[1773574064918,0.19280989,71736.0,71726.0,0.041819]
[1773574065117,0.19280989,71735.0,71726.0,0.041819]
[1773574065317,0.011,71732.0,71726.0,0.041819]
[1773574074940,0.011,71732.0,71723.0,0.0014]
[1773574074941,0.07353301,71749.0,71727.0,0.03155959]
[1773574075242,0.22473209,71748.0,71737.0,0.041812]
[1773574075433,0.19300508,71747.0,71738.0,0.0014]
[1773574075634,0.19300508,71746.0,71738.0,0.0014]
[1773574075835,0.19300508,71745.0,71738.0,0.043212]
[1773574076035,0.19300508,71744.0,71738.0,0.043212]
[1773574076236,0.19300508,71743.0,71738.0,0.043212]
[1773574076436,0.19300508,71742.0,71738.0,0.043212]
[1773574076742,0.03172701,71748.0,71738.0,0.043212]
[1773574077043,0.03272701,71748.0,71738.0,0.043212]
[1773574077536,0.03172701,71748.0,71738.0,0.043212]
[1773574077743,0.001,71742.0,71738.0,0.043212]
[1773574078037,0.03172701,71748.0,71738.0,0.043212]
[1773574078244,0.04271701,71748.0,71738.0,0.043212]
[1773574078440,0.04371701,71748.0,71738.0,0.043212]
[1773574078633,0.04471701,71748.0,71738.0,0.043212]
[1773574079748,0.04471701,71748.0,71739.0,0.041811]
[1773574081546,0.01299,71748.0,71739.0,0.041811]
[1773574084852,0.01299,71748.0,71738.0,0.0014]
[1773574086547,0.01199,71748.0,71738.0,0.0014]
[1773574086748,0.01299,71748.0,71738.0,0.0014]
[1773574090054,0.01299,71748.0,71739.0,0.0014]
[1773574090750,0.01199,71748.0,71739.0,0.0014]
[1773574092753,0.01099,71748.0,71739.0,0.0014]
[1773574092944,0.01199,71748.0,71739.0,0.0014]
[1773574093753,0.01099,71748.0,71739.0,0.0014]
[1773574093948,0.01199,71748.0,71739.0,0.0014]
[1773574096053,0.053796,71748.0,71739.0,0.0014]
[1773574097441,0.052796,71748.0,71739.0,0.0014]
[1773574097846,0.552796,71748.0,71739.0,0.0014]
[1773574101960,0.51099,71748.0,71739.0,0.0014]
[1773574102952,0.041808,71746.0,71739.0,0.0014]
[1773574105258,0.041808,71746.0,71740.0,0.0014]
[1773574106549,0.041808,71746.0,71741.0,0.0014]
[1773574107154,0.541808,71746.0,71741.0,0.0014]
[1773574107355,0.541808,71746.0,71732.0,0.041815]
[1773574107659,0.541808,71746.0,71733.0,0.0014]
[1773574110452,0.541808,71746.0,71733.0,0.043215]
[1773574112054,0.541808,71746.0,71734.0,0.02190039]
[1773574113456,0.5,71746.0,71734.0,0.06371439]
[1773574115159,0.5,71746.0,71734.0,0.041814]
[1773574115662,0.5,71746.0,71733.0,0.0014]
[1773574116662,0.02980701,71745.0,71734.0,0.0014]
[1773574116969,0.02980701,71745.0,71735.0,0.0014]
[1773574117153,0.02980701,71745.0,71736.0,0.0014]
[1773574117350,0.02980701,71745.0,71737.0,0.0014]
[1773574117556,0.02980701,71745.0,71737.0,0.0002988]
[1773574117958,0.041811,71741.0,71737.0,0.0002988]
[1773574118264,0.07161801,71741.0,71737.0,0.0014]
[1773574118667,0.02980701,71745.0,71730.0,0.0014]
[1773574118868,0.02980701,71745.0,71729.0,0.0014]
[1773574119064,0.041815,71733.0,71717.0,0.041824]
[1773574119274,0.041816,71732.0,71718.0,0.0014]
[1773574120871,0.041816,71732.0,71718.0,0.043223]
[1773574122163,0.011,71733.0,71718.0,0.0014]
[1773574122772,0.041817,71730.0,71718.0,0.0014]
[1773574126174,0.052815,71733.0,71719.0,0.041823]
[1773574126772,0.041816,71732.0,71719.0,0.041823]
[1773574127172,0.041816,71731.0,71719.0,0.041823]
[1773574127382,0.041816,71731.0,71720.0,0.0014]
[1773574131877,0.041817,71730.0,71720.0,0.0014]
[1773574133577,0.041816,71732.0,71720.0,0.0014]
[1773574133877,0.041816,71731.0,71720.0,0.0014]
[1773574146791,0.041817,71730.0,71720.0,0.0014]
[1773574148793,0.011,71733.0,71721.0,0.03425184]
[1773574149596,0.011,71733.0,71726.0,0.041819]
[1773574149792,0.041812,71738.0,71727.0,0.0014]
[1773574151683,0.052802,71738.0,71727.0,0.0014]
[1773574152482,0.052802,71738.0,71727.0,0.043218]
[1773574152687,0.01099,71738.0,71727.0,0.043218]
[1773574154098,0.01099,71738.0,71728.0,0.02190039]
[1773574156397,0.041813,71737.0,71729.0,0.0014]
[1773574156599,0.041813,71737.0,71730.0,0.0014]
[1773574156791,0.041813,71737.0,71731.0,0.0014]
[1773574158801,0.031813,71737.0,71731.0,0.0014]
[1773574171407,0.51099,71738.0,71731.0,0.0014]
[1773574174406,0.552802,71738.0,71731.0,0.0014]
[1773574176901,0.5,71732.0,71731.0,0.0014]
[1773574179007,0.01099,71738.0,71731.0,0.0014]
[1773574179310,0.01099,71738.0,71731.0,0.0024]
[1773574180208,0.041811,71740.0,71731.0,0.0014]
[1773574183207,0.042861,71740.0,71731.0,0.0014]
[1773574185306,0.042861,71740.0,71732.0,0.0014]
[1773574187520,0.041812,71739.0,71732.0,0.0014]
[1773574196526,0.03906181,71735.0,71733.0,0.0014]
[1773574196731,0.03906181,71733.0,71721.0,0.01038836]
[1773574196930,0.03906181,71733.0,71722.0,0.0014]
[1773574197530,0.08087681,71733.0,71722.0,0.043221]
[1773574197732,0.041817,71730.0,71723.0,0.0014]
[1773574198736,0.03906181,71739.0,71726.0,0.041819]
[1773574198934,0.041813,71737.0,71724.0,0.04182]
[1773574199135,0.041813,71737.0,71725.0,0.041819]
[1773574200238,0.041813,71737.0,71726.0,0.041819]
[1773574201439,0.08087481,71737.0,71726.0,0.041819]
[1773574202129,0.08087481,71737.0,71721.0,0.01038836]
[1773574202130,0.03906181,71737.0,71721.0,0.01038836]
[1773574202336,0.041815,71734.0,71722.0,0.0014]
[1773574202741,0.041815,71734.0,71722.0,0.043221]
[1773574203132,0.03906181,71737.0,71723.0,0.0014]
[1773574203834,0.041817,71731.0,71724.0,0.0014]
[1773574204030,0.08087881,71731.0,71725.0,0.0014]
[1773574204430,0.08087881,71731.0,71719.0,0.041823]
[1773574204630,0.041819,71727.0,71720.0,0.0014]
[1773574204829,0.041819,71727.0,71721.0,0.0014]
[1773574205027,0.041819,71727.0,71715.0,0.041825]
[1773574205240,0.08088081,71727.0,71716.0,0.0014]
[1773574205535,0.03906181,71725.0,71717.0,0.0014]
[1773574205733,0.03906181,71725.0,71714.0,0.041826]
[1773574205934,0.03906181,71725.0,71715.0,0.0014]
[1773574206535,0.03906181,71725.0,71716.0,0.001]
[1773574206734,0.03906181,71725.0,71717.0,0.0014]
[1773574207132,0.03906181,71729.0,71718.0,0.0014]
[1773574207746,0.03906181,71768.0,71741.0,0.03952998]
[1773574208039,0.041797,71764.0,71743.0,0.03952998]
[1773574208239,0.041799,71761.0,71748.0,0.041806]
[1773574208441,0.041799,71761.0,71749.0,0.0014]
[1773574209236,0.0418,71760.0,71746.0,0.041807]
[1773574209439,0.0418,71758.0,71747.0,0.0014]
[1773574211236,0.0418,71758.0,71748.0,0.0014]
[1773574212040,0.05279,71758.0,71748.0,0.0014]
[1773574213841,0.01099,71758.0,71737.0,0.01099]
[1773574214048,0.08086481,71754.0,71740.0,0.04181]
[1773574214446,0.08086481,71754.0,71741.0,0.04181]
[1773574218244,0.08086481,71754.0,71742.0,0.0014]
[1773574218444,0.08086481,71754.0,71742.0,0.1204]
[1773574218651,0.08086481,71754.0,71742.0,0.119]
[1773574218852,0.041804,71752.0,71743.0,0.0014]
[1773574219251,0.041804,71752.0,71744.0,0.0014]
[1773574219652,0.041804,71752.0,71742.0,0.119]
[1773574219852,0.041804,71752.0,71743.0,0.0014]
[1773574220153,0.041804,71752.0,71742.0,0.119]
[1773574220350,0.041804,71752.0,71743.0,0.0014]
[1773574220649,0.041804,71752.0,71742.0,0.119]
[1773574220955,0.041804,71752.0,71743.0,0.0014]
[1773574221158,0.041804,71752.0,71742.0,0.119]
[1773574221354,0.041804,71752.0,71743.0,0.0014]
[1773574221646,0.041804,71752.0,71742.0,0.119]
[1773574221851,0.041804,71752.0,71743.0,0.0014]
[1773574222048,0.08064325,71752.0,71744.0,0.0014]
[1773574222351,0.08064325,71752.0,71745.0,0.0014]
[1773574222540,0.08064325,71752.0,71746.0,0.0014]
[1773574222746,0.08064325,71752.0,71747.0,0.0014]
[1773574222948,0.08064325,71752.0,71748.0,0.0014]
[1773574223150,0.08064325,71752.0,71749.0,0.0014]
[1773574223452,0.01099,71758.0,71737.0,0.01099]
[1773574223453,0.03883925,71753.0,71737.0,0.01099]
[1773574223654,0.03883925,71753.0,71738.0,0.0014]
[1773574223849,0.041807,71747.0,71738.0,0.0014]
[1773574225555,0.041808,71746.0,71738.0,0.0014]
[1773574226958,0.041808,71746.0,71739.0,0.0014]
[1773574229960,0.01099,71747.0,71739.0,0.0014]
[1773574230946,0.052797,71747.0,71739.0,0.0014]
[1773574233162,0.052797,71747.0,71735.0,0.041813]
[1773574233363,0.052797,71747.0,71736.0,0.0014]
[1773574236166,0.052797,71747.0,71736.0,0.043213]
[1773574239262,0.01099,71747.0,71737.0,0.041812]
[1773574240068,0.01099,71747.0,71737.0,0.20887289]
[1773574241258,0.01099,71747.0,71739.0,0.16706089]
[1773574242260,0.01099,71747.0,71740.0,0.16706089]
[1773574243464,0.01099,71747.0,71739.0,0.16706089]
[1773574243677,0.041807,71746.0,71740.0,0.0014]
[1773574245570,0.041808,71746.0,71741.0,0.0014]
[1773574245774,0.041808,71745.0,71742.0,0.0014]
[1773574246077,0.041808,71745.0,71743.0,0.0014]
[1773574246279,0.041808,71745.0,71744.0,0.0014]
[1773574247273,0.041808,71745.0,71733.0,0.041815]
[1773574247577,0.041808,71745.0,71734.0,0.0014]
[1773574248381,0.03883925,71746.0,71731.0,0.16706089]
[1773574248575,0.041811,71740.0,71732.0,0.0014]
[1773574248877,0.04181,71743.0,71732.0,0.0014]
[1773574249080,0.01099,71747.0,71738.0,0.041812]
[1773574250283,0.01099,71747.0,71739.0,0.0014]
[1773574251281,0.041805,71750.0,71739.0,0.0014]
[1773574251874,0.041805,71750.0,71739.0,0.03945891]
[1773574252982,0.041805,71750.0,71739.0,0.08126991]
[1773574253582,0.00167,71750.0,71739.0,0.08126991]
[1773574254388,0.00167,71750.0,71741.0,0.04181]
[1773574255084,0.00167,71750.0,71739.0,0.08126991]
[1773574255985,0.043476,71750.0,71739.0,0.0014]
[1773574256185,0.00167,71750.0,71741.0,0.04181]
[1773574256987,0.00167,71750.0,71739.0,0.043211]
[1773574258084,0.00167,71750.0,71740.0,0.041811]
[1773574260498,0.041804,71752.0,71740.0,0.041811]
[1773574263402,0.041804,71752.0,71745.0,0.01099]
[1773574263610,0.041804,71752.0,71746.0,0.0014]
[1773574263794,0.041803,71754.0,71746.0,0.0014]
[1773574264103,0.03769625,71759.0,71745.0,0.01099]
[1773574264601,0.03769625,71759.0,71740.0,0.0014]
[1773574266196,0.041805,71751.0,71740.0,0.0014]
[1773574267397,0.03769625,71759.0,71740.0,0.0014]
[1773574267591,0.041806,71749.0,71741.0,0.0014]
[1773574273807,0.041805,71751.0,71741.0,0.0014]
[1773574274409,0.041801,71758.0,71747.0,0.041807]
[1773574274598,0.052789,71760.0,71742.0,0.03805891]
[1773574275203,0.01099,71760.0,71742.0,0.03805891]
[1773574277006,0.01099,71760.0,71751.0,0.07986291]
[1773574277308,0.041798,71763.0,71752.0,0.0014]
[1773574277510,0.031798,71763.0,71752.0,0.0014]
[1773574277807,0.041796,71766.0,71753.0,0.041803]
[1773574278000,0.041797,71764.0,71752.0,0.043204]
[1773574278803,0.03769625,71767.0,71752.0,0.0014]
[1773574279910,0.041798,71763.0,71752.0,0.0014]
[1773574284108,0.041798,71762.0,71752.0,0.0014]
[1773574287811,0.041798,71762.0,71752.0,0.03535201]
[1773574290514,0.041797,71764.0,71753.0,0.041803]
[1773574290811,0.01099,71771.0,71753.0,0.041803]
[1773574290812,0.041795,71767.0,71753.0,0.03395201]
[1773574292111,0.041795,71767.0,71755.0,0.041802]
[1773574292317,0.041796,71766.0,71755.0,0.041802]
[1773574301824,0.041795,71768.0,71756.0,0.03395201]
[1773574302124,0.052783,71771.0,71759.0,0.041799]
[1773574302328,0.052783,71771.0,71760.0,0.0014]
[1773574305620,0.041793,71771.0,71760.0,0.0014]
[1773574320831,0.041794,71770.0,71760.0,0.0014]
[1773574321435,0.03309351,71773.0,71760.0,0.0014]